[Event "Early-Titled-Tuesday-Blitz-July-09-2024"]
[Site "Chess.com"]
[Date "2024.07.09"]
[Round "1"]
[White "Kapitan_Bayan"]
[Black "koncheto"]
[Result "0-1"]
[WhiteElo "2356"]
[BlackElo "2668"]
[TimeControl "180+1"]
[EndTime "8:08:18 PDT"]
[Termination "koncheto won by resignation"]

1. e4 {[%clk 0:02:59.7]} 1... c5 {[%clk 0:02:56.4]} 2. Nf3 {[%clk 0:02:54.3]}
2... d6 {[%clk 0:02:56.7]} 3. d4 {[%clk 0:02:49]} 3... cxd4 {[%clk 0:02:57.6]}
4. Nxd4 {[%clk 0:02:49.6]} 4... Nf6 {[%clk 0:02:57.9]} 5. Nc3 {[%clk 0:02:46.2]}
5... Nc6 {[%clk 0:02:58.1]} 6. Bg5 {[%clk 0:02:42.6]} 6... e6 {[%clk 0:02:58.2]}
7. Bb5 {[%clk 0:02:41.5]} 7... Bd7 {[%clk 0:02:58.1]} 8. Qd3 {[%clk 0:02:41.6]}
8... a6 {[%clk 0:02:57.9]} 9. Bxc6 {[%clk 0:02:41.5]} 9... bxc6 {[%clk
0:02:58.8]} 10. O-O-O {[%clk 0:02:40.5]} 10... Be7 {[%clk 0:02:57.7]} 11. f4
{[%clk 0:02:35.5]} 11... h6 {[%clk 0:02:40.9]} 12. Bh4 {[%clk 0:02:27.1]} 12...
g5 {[%clk 0:02:39]} 13. fxg5 {[%clk 0:02:19.8]} 13... Ng4 {[%clk 0:02:38.6]} 14.
Nf3 {[%clk 0:02:15.4]} 14... hxg5 {[%clk 0:02:31.9]} 15. Bg3 {[%clk 0:02:13.3]}
15... d5 {[%clk 0:02:32.4]} 16. exd5 {[%clk 0:02:07.6]} 16... cxd5 {[%clk
0:02:30.9]} 17. Rhe1 {[%clk 0:02:07.7]} 17... Bc6 {[%clk 0:02:19.8]} 18. h3
{[%clk 0:02:01.4]} 18... Nh6 {[%clk 0:02:12.5]} 19. Nd4 {[%clk 0:01:54.3]} 19...
Qd7 {[%clk 0:02:01.6]} 20. Be5 {[%clk 0:01:52.8]} 20... O-O {[%clk 0:01:54.8]}
21. Rf1 {[%clk 0:01:37.2]} 21... f5 {[%clk 0:01:49.2]} 22. g4 {[%clk 0:01:29.4]}
22... Bf6 {[%clk 0:01:17.3]} 23. Nf3 {[%clk 0:01:20.2]} 23... Qg7 {[%clk
0:01:02.1]} 24. Qd4 {[%clk 0:01:18.5]} 24... Rac8 {[%clk 0:00:52.5]} 25. Kb1
{[%clk 0:01:07.3]} 25... Bb5 {[%clk 0:00:51.1]} 26. Nxb5 {[%clk 0:01:03]} 26...
axb5 {[%clk 0:00:50.8]} 27. Bxf6 {[%clk 0:01:02.1]} 27... Rxf6 {[%clk
0:00:38.8]} 28. gxf5 {[%clk 0:00:50.1]} 28... Nxf5 {[%clk 0:00:37.7]} 29. Qd3
{[%clk 0:00:49.9]} 29... Kh8 {[%clk 0:00:19.3]} 30. Rg1 {[%clk 0:00:49.4]} 30...
Rg6 {[%clk 0:00:17.6]} 31. Rdf1 {[%clk 0:00:48.8]} 31... Rc4 {[%clk 0:00:14.8]}
32. b3 {[%clk 0:00:39.1]} 32... Rf4 {[%clk 0:00:11.7]} 33. Qxb5 {[%clk
0:00:33.9]} 33... Ne3 {[%clk 0:00:07.3]} 34. Rf2 {[%clk 0:00:18.7]} 34... Qf6
{[%clk 0:00:07.3]} 35. Qb8+ {[%clk 0:00:17.7]} 35... Rg8 {[%clk 0:00:06.9]} 36.
Qb6 {[%clk 0:00:11.9]} 36... Rxf3 {[%clk 0:00:04.3]} 37. Rxf3 {[%clk 0:00:12.3]}
37... Qxf3 {[%clk 0:00:04.8]} 38. Qd4+ {[%clk 0:00:13]} 38... Kh7 {[%clk
0:00:04]} 39. Qe5 {[%clk 0:00:12]} 39... Qe4 {[%clk 0:00:01.8]} 40. Qxe4+ {[%clk
0:00:09.1]} 40... dxe4 {[%clk 0:00:02]} 41. Re1 {[%clk 0:00:09.7]} 41... Nd5
{[%clk 0:00:01.9]} 42. Kb2 {[%clk 0:00:07.8]} 42... Nf4 {[%clk 0:00:01.9]} 43.
Rxe4 {[%clk 0:00:07.4]} 43... Kg6 {[%clk 0:00:02.4]} 44. a4 {[%clk 0:00:05.5]}
44... Kf5 {[%clk 0:00:02.8]} 45. Re3 {[%clk 0:00:06.1]} 45... e5 {[%clk
0:00:03.1]} 46. a5 {[%clk 0:00:06]} 46... e4 {[%clk 0:00:03.7]} 47. b4 {[%clk
0:00:06.2]} 47... Nd5 {[%clk 0:00:04.2]} 48. Rb3 {[%clk 0:00:06.4]} 48... e3
{[%clk 0:00:04.7]} 49. Kc1 {[%clk 0:00:07]} 49... Ke4 {[%clk 0:00:04.7]} 50. a6
{[%clk 0:00:06.8]} 50... Ra8 {[%clk 0:00:04.7]} 51. b5 {[%clk 0:00:06.9]} 51...
Kf3 {[%clk 0:00:05.2]} 52. Kd1 {[%clk 0:00:06.9]} 52... Kf2 {[%clk 0:00:05.2]}
53. Rxe3 {[%clk 0:00:02.6]} 53... Kxe3 {[%clk 0:00:05.6]} 54. c4 {[%clk
0:00:02.3]} 54... Kd4 {[%clk 0:00:05.7]} 55. cxd5 {[%clk 0:00:02.2]} 55... Kxd5
{[%clk 0:00:06.6]} 56. Ke2 {[%clk 0:00:02.8]} 56... Kc5 {[%clk 0:00:06.9]} 57.
Kf3 {[%clk 0:00:03.7]} 57... Kxb5 {[%clk 0:00:07.2]} 58. Kg4 {[%clk 0:00:04.6]}
58... Rxa6 {[%clk 0:00:07.6]} 59. Kxg5 {[%clk 0:00:05.5]} 59... Kc6 {[%clk
0:00:07.6]} 60. h4 {[%clk 0:00:06.4]} 60... Kd7 {[%clk 0:00:08.2]} 61. h5 {[%clk
0:00:06.6]} 61... Ke8 {[%clk 0:00:08.8]} 62. h6 {[%clk 0:00:07]} 62... Kf8
{[%clk 0:00:09.4]} 0-1

[Event "Early-Titled-Tuesday-Blitz-July-09-2024"]
[Site "Chess.com"]
[Date "2024.07.09"]
[Round "1"]
[White "Pitomina"]
[Black "UnTucopalaTimba"]
[Result "1-0"]
[WhiteElo "2571"]
[BlackElo "2152"]
[TimeControl "180+1"]
[EndTime "8:08:19 PDT"]
[Termination "Pitomina won on time"]

1. d4 {[%clk 0:03:00.4]} 1... Nf6 {[%clk 0:02:58.8]} 2. Bf4 {[%clk 0:02:59.6]}
2... d5 {[%clk 0:02:57.8]} 3. e3 {[%clk 0:02:59]} 3... c5 {[%clk 0:02:57.5]} 4.
c3 {[%clk 0:02:55.9]} 4... Nc6 {[%clk 0:02:56.2]} 5. Nd2 {[%clk 0:02:54.8]} 5...
Qb6 {[%clk 0:02:53]} 6. Qb3 {[%clk 0:02:51.2]} 6... c4 {[%clk 0:02:51.4]} 7. Qc2
{[%clk 0:02:50.8]} 7... Bg4 {[%clk 0:02:48.1]} 8. Ngf3 {[%clk 0:02:47.8]} 8...
e6 {[%clk 0:02:47.3]} 9. Be2 {[%clk 0:02:38.4]} 9... Be7 {[%clk 0:02:43.4]} 10.
b3 {[%clk 0:02:36.5]} 10... Bf5 {[%clk 0:02:39.1]} 11. Qb2 {[%clk 0:02:35.2]}
11... cxb3 {[%clk 0:02:30.2]} 12. axb3 {[%clk 0:02:36.1]} 12... O-O {[%clk
0:02:28.6]} 13. O-O {[%clk 0:02:35.5]} 13... Rfc8 {[%clk 0:02:28.3]} 14. b4
{[%clk 0:02:30.8]} 14... a6 {[%clk 0:02:25.4]} 15. Nb3 {[%clk 0:02:30.2]} 15...
Ne4 {[%clk 0:02:20.9]} 16. Rfc1 {[%clk 0:02:17.1]} 16... Na7 {[%clk 0:02:10.3]}
17. Nfd2 {[%clk 0:02:04.8]} 17... Nxd2 {[%clk 0:02:02.1]} 18. Qxd2 {[%clk
0:02:05.7]} 18... Nb5 {[%clk 0:02:01.9]} 19. Nc5 {[%clk 0:02:04.2]} 19... Nd6
{[%clk 0:01:50.2]} 20. f3 {[%clk 0:01:50.8]} 20... Nc4 {[%clk 0:01:45.9]} 21.
Bxc4 {[%clk 0:01:50.1]} 21... dxc4 {[%clk 0:01:46]} 22. e4 {[%clk 0:01:50.6]}
22... Bg6 {[%clk 0:01:45.5]} 23. Be3 {[%clk 0:01:42.1]} 23... Bxc5 {[%clk
0:01:42.4]} 24. dxc5 {[%clk 0:01:35.1]} 24... Qc6 {[%clk 0:01:40.4]} 25. Bd4
{[%clk 0:01:34.5]} 25... f6 {[%clk 0:01:37.6]} 26. e5 {[%clk 0:01:31.5]} 26...
fxe5 {[%clk 0:01:27.1]} 27. Bxe5 {[%clk 0:01:30.8]} 27... Bd3 {[%clk 0:01:27.1]}
28. Qg5 {[%clk 0:01:29.5]} 28... Qd7 {[%clk 0:01:21.9]} 29. Re1 {[%clk
0:01:29.2]} 29... Rf8 {[%clk 0:01:17.2]} 30. Bd4 {[%clk 0:01:28.4]} 30... Rf5
{[%clk 0:01:13.5]} 31. Qg3 {[%clk 0:01:27.4]} 31... Rf7 {[%clk 0:01:04.4]} 32.
Re5 {[%clk 0:01:25.7]} 32... Re8 {[%clk 0:01:03.3]} 33. Rae1 {[%clk 0:01:25.2]}
33... Bf5 {[%clk 0:00:59.9]} 34. h4 {[%clk 0:01:22.8]} 34... h6 {[%clk
0:00:58.4]} 35. Qf4 {[%clk 0:01:22.2]} 35... Kh7 {[%clk 0:00:46.6]} 36. Qe3
{[%clk 0:01:21.5]} 36... Kg8 {[%clk 0:00:44.8]} 37. g4 {[%clk 0:01:20.3]} 37...
Bd3 {[%clk 0:00:41.5]} 38. Kg2 {[%clk 0:01:19.9]} 38... Rfe7 {[%clk 0:00:38.8]}
39. Kg3 {[%clk 0:01:19.1]} 39... Qc7 {[%clk 0:00:37.9]} 40. f4 {[%clk 0:01:18]}
40... Kf8 {[%clk 0:00:34.6]} 41. Kh3 {[%clk 0:01:13.5]} 41... Qc6 {[%clk
0:00:26.7]} 42. Qg3 {[%clk 0:01:10.4]} 42... Kg8 {[%clk 0:00:22.5]} 43. f5
{[%clk 0:01:08.4]} 43... Kf7 {[%clk 0:00:21.7]} 44. Qe3 {[%clk 0:01:05.8]} 44...
Qd7 {[%clk 0:00:16.8]} 45. f6 {[%clk 0:00:54.5]} 45... gxf6 {[%clk 0:00:16.2]}
46. Qxh6 {[%clk 0:00:53.8]} 46... fxe5 {[%clk 0:00:13.4]} 47. Bxe5 {[%clk
0:00:54.7]} 47... Rg8 {[%clk 0:00:12.1]} 48. Re3 {[%clk 0:00:41.5]} 48... Qc6
{[%clk 0:00:09]} 49. Kg3 {[%clk 0:00:36]} 49... Ke8 {[%clk 0:00:07.6]} 50. Bd6
{[%clk 0:00:35.5]} 50... Reg7 {[%clk 0:00:06.7]} 51. Qxe6+ {[%clk 0:00:32.7]}
51... Kd8 {[%clk 0:00:06.7]} 52. g5 {[%clk 0:00:32.8]} 52... Qd7 {[%clk
0:00:04.7]} 53. Qf6+ {[%clk 0:00:20.3]} 53... Kc8 {[%clk 0:00:04.6]} 54. Bf4
{[%clk 0:00:16.1]} 54... Rg6 {[%clk 0:00:04.2]} 55. Qe5 {[%clk 0:00:16.3]} 55...
Kd8 {[%clk 0:00:02.7]} 56. Qb8+ {[%clk 0:00:16.1]} 56... Qc8 {[%clk 0:00:02.9]}
57. Qe5 {[%clk 0:00:13.6]} 57... Qd7 {[%clk 0:00:01.1]} 58. h5 {[%clk
0:00:12.4]} 1-0

[Event "Early-Titled-Tuesday-Blitz-July-09-2024"]
[Site "Chess.com"]
[Date "2024.07.09"]
[Round "1"]
[White "klercaku"]
[Black "Kildepiotr"]
[Result "1/2-1/2"]
[WhiteElo "2395"]
[BlackElo "2687"]
[TimeControl "180+1"]
[EndTime "8:08:21 PDT"]
[Termination "Game drawn - insufficient material"]

1. e4 {[%clk 0:03:00.9]} 1... g6 {[%clk 0:02:59.7]} 2. d4 {[%clk 0:03:00.3]}
2... Bg7 {[%clk 0:03:00.4]} 3. Nf3 {[%clk 0:02:58.2]} 3... c6 {[%clk 0:03:00.7]}
4. Nc3 {[%clk 0:02:58.7]} 4... d6 {[%clk 0:03:00.6]} 5. Be2 {[%clk 0:02:59.2]}
5... Nd7 {[%clk 0:03:00.8]} 6. Be3 {[%clk 0:02:59.8]} 6... Ngf6 {[%clk
0:03:01.2]} 7. Qd2 {[%clk 0:03:00.4]} 7... O-O {[%clk 0:03:01.5]} 8. h3 {[%clk
0:03:00.9]} 8... e5 {[%clk 0:03:01.7]} 9. dxe5 {[%clk 0:02:59.4]} 9... dxe5
{[%clk 0:03:02.6]} 10. O-O-O {[%clk 0:02:57.4]} 10... Qe7 {[%clk 0:03:02.3]} 11.
Qd6 {[%clk 0:02:55.8]} 11... Qxd6 {[%clk 0:03:02.1]} 12. Rxd6 {[%clk 0:02:56.7]}
12... Ne8 {[%clk 0:02:53.9]} 13. Rd2 {[%clk 0:02:54.7]} 13... Nc7 {[%clk
0:02:53.4]} 14. Rhd1 {[%clk 0:02:53.7]} 14... Nb6 {[%clk 0:02:46.2]} 15. Bc5
{[%clk 0:02:35]} 15... Re8 {[%clk 0:02:45.3]} 16. Bd6 {[%clk 0:02:32.6]} 16...
Ne6 {[%clk 0:02:34.8]} 17. Nxe5 {[%clk 0:02:16.6]} 17... Nf4 {[%clk 0:02:31.3]}
18. Nd3 {[%clk 0:02:11.3]} 18... Nxg2 {[%clk 0:02:22.4]} 19. Bg3 {[%clk
0:01:50.2]} 19... Nc4 {[%clk 0:02:22]} 20. Bf3 {[%clk 0:01:41.1]} 20... Nxd2
{[%clk 0:02:21.7]} 21. Kxd2 {[%clk 0:01:42]} 21... Bxh3 {[%clk 0:02:18.9]} 22.
Rh1 {[%clk 0:01:40.4]} 22... f5 {[%clk 0:01:55.8]} 23. Rxh3 {[%clk 0:01:30.8]}
23... Bxc3+ {[%clk 0:01:48.3]} 24. Kxc3 {[%clk 0:01:29.3]} 24... fxe4 {[%clk
0:01:49.2]} 25. Bxg2 {[%clk 0:01:25.5]} 25... exd3 {[%clk 0:01:49.3]} 26. cxd3
{[%clk 0:01:23.5]} 26... Re2 {[%clk 0:01:45.6]} 27. Be4 {[%clk 0:01:20.9]} 27...
Rf8 {[%clk 0:01:39.6]} 28. Rh1 {[%clk 0:01:05.5]} 28... a5 {[%clk 0:01:35.3]}
29. a4 {[%clk 0:00:55.5]} 29... b5 {[%clk 0:01:22.1]} 30. Bxc6 {[%clk
0:00:51.2]} 30... bxa4 {[%clk 0:01:18.5]} 31. Bxa4 {[%clk 0:00:47.9]} 31... Rc8+
{[%clk 0:01:17.7]} 32. Kb3 {[%clk 0:00:48.3]} 32... Rcc2 {[%clk 0:01:14.8]} 33.
Rb1 {[%clk 0:00:34.9]} 33... g5 {[%clk 0:01:14.4]} 34. Bb5 {[%clk 0:00:34]}
34... Rcd2 {[%clk 0:01:07.2]} 35. Bc4+ {[%clk 0:00:31.1]} 35... Kg7 {[%clk
0:01:07.1]} 36. Kc3 {[%clk 0:00:29.3]} 36... h5 {[%clk 0:00:59.4]} 37. b4 {[%clk
0:00:28.1]} 37... Rc2+ {[%clk 0:00:55.3]} 38. Kd4 {[%clk 0:00:28.1]} 38... axb4
{[%clk 0:00:54.1]} 39. Rxb4 {[%clk 0:00:27.5]} 39... h4 {[%clk 0:00:54.2]} 40.
Be5+ {[%clk 0:00:28.1]} 40... Kg6 {[%clk 0:00:51.2]} 41. Rb6+ {[%clk 0:00:27.7]}
41... Kh5 {[%clk 0:00:50.6]} 42. Bf7+ {[%clk 0:00:25.6]} 42... Kg4 {[%clk
0:00:50.7]} 43. Rh6 {[%clk 0:00:25.9]} 43... Rxf2 {[%clk 0:00:44.3]} 44. Be6+
{[%clk 0:00:24.7]} 44... Kf3 {[%clk 0:00:44.7]} 45. Bd5+ {[%clk 0:00:19]} 45...
Ke2 {[%clk 0:00:42.5]} 46. Rh5 {[%clk 0:00:17.8]} 46... Rd2 {[%clk 0:00:34.2]}
47. Rxg5 {[%clk 0:00:15.2]} 47... Rxd3+ {[%clk 0:00:34.4]} 48. Kc4 {[%clk
0:00:13.7]} 48... h3 {[%clk 0:00:30.3]} 49. Rh5 {[%clk 0:00:13]} 49... Rf1
{[%clk 0:00:23.2]} 50. Kc5 {[%clk 0:00:12.2]} 50... Rc1+ {[%clk 0:00:22.7]} 51.
Bc4 {[%clk 0:00:12.1]} 51... Kf2 {[%clk 0:00:19.6]} 52. Kb5 {[%clk 0:00:08.7]}
52... Rb1+ {[%clk 0:00:18.4]} 53. Kc5 {[%clk 0:00:09.2]} 53... Rc1 {[%clk
0:00:18.8]} 54. Kb5 {[%clk 0:00:09.3]} 54... Rd8 {[%clk 0:00:18.6]} 55. Rf5+
{[%clk 0:00:07.5]} 55... Kg2 {[%clk 0:00:18.9]} 56. Rg5+ {[%clk 0:00:07.6]}
56... Kf3 {[%clk 0:00:19.3]} 57. Rh5 {[%clk 0:00:06.7]} 57... Ke4 {[%clk
0:00:17.7]} 58. Bc7 {[%clk 0:00:05.8]} 58... Rb1+ {[%clk 0:00:16.2]} 59. Kc5
{[%clk 0:00:05.3]} 59... Rc8 {[%clk 0:00:16.5]} 60. Kc6 {[%clk 0:00:05.6]} 60...
Rc1 {[%clk 0:00:16.2]} 61. Rh4+ {[%clk 0:00:05.3]} 61... Kf5 {[%clk 0:00:15.6]}
62. Kd7 {[%clk 0:00:05.6]} 62... Rxc7+ {[%clk 0:00:15.5]} 63. Kxc7 {[%clk
0:00:05.7]} 63... h2 {[%clk 0:00:15.6]} 64. Rxh2 {[%clk 0:00:03.4]} 64... Rxc4+
{[%clk 0:00:16]} 65. Kd6 {[%clk 0:00:04]} 65... Rd4+ {[%clk 0:00:16.6]} 66. Kc5
{[%clk 0:00:04.2]} 66... Re4 {[%clk 0:00:17]} 67. Rf2+ {[%clk 0:00:04.6]} 67...
Rf4 {[%clk 0:00:17.3]} 68. Re2 {[%clk 0:00:04.9]} 68... Re4 {[%clk 0:00:17.4]}
69. Rxe4 {[%clk 0:00:05.2]} 69... Kxe4 {[%clk 0:00:18.2]} 1/2-1/2

[Event "Early-Titled-Tuesday-Blitz-July-09-2024"]
[Site "Chess.com"]
[Date "2024.07.09"]
[Round "1"]
[White "Tol_Tol"]
[Black "annasargsyan_m"]
[Result "1-0"]
[WhiteElo "2360"]
[BlackElo "2642"]
[TimeControl "180+1"]
[EndTime "8:08:23 PDT"]
[Termination "Tol_Tol won by resignation"]

1. d4 {[%clk 0:02:58.5]} 1... d5 {[%clk 0:02:06.9]} 2. c4 {[%clk 0:02:55.8]}
2... c6 {[%clk 0:02:05.9]} 3. Nf3 {[%clk 0:02:55.4]} 3... Nf6 {[%clk 0:02:06.3]}
4. Nc3 {[%clk 0:02:55.6]} 4... dxc4 {[%clk 0:02:06.7]} 5. a4 {[%clk 0:02:55.3]}
5... Bf5 {[%clk 0:02:06.5]} 6. e3 {[%clk 0:02:55.2]} 6... e6 {[%clk 0:02:06.4]}
7. Bxc4 {[%clk 0:02:55.7]} 7... Nbd7 {[%clk 0:02:06.7]} 8. O-O {[%clk
0:02:55.2]} 8... Bb4 {[%clk 0:02:06.3]} 9. Qb3 {[%clk 0:02:48.4]} 9... a5 {[%clk
0:02:00.6]} 10. Rd1 {[%clk 0:02:40.3]} 10... O-O {[%clk 0:01:59.7]} 11. Bd2
{[%clk 0:02:39.7]} 11... Qe7 {[%clk 0:01:50.9]} 12. Na2 {[%clk 0:02:25.9]} 12...
Bxd2 {[%clk 0:01:48.9]} 13. Nxd2 {[%clk 0:02:25.1]} 13... Rab8 {[%clk 0:01:49]}
14. Nc3 {[%clk 0:02:15]} 14... c5 {[%clk 0:01:28.8]} 15. d5 {[%clk 0:02:02.6]}
15... exd5 {[%clk 0:01:24]} 16. Nxd5 {[%clk 0:02:02.8]} 16... Nxd5 {[%clk
0:01:23.2]} 17. Bxd5 {[%clk 0:02:03.4]} 17... Ne5 {[%clk 0:01:19.7]} 18. h3
{[%clk 0:01:53.4]} 18... h6 {[%clk 0:01:13.3]} 19. e4 {[%clk 0:01:52.6]} 19...
Be6 {[%clk 0:01:10.4]} 20. Nc4 {[%clk 0:01:47.6]} 20... Nc6 {[%clk 0:01:03.2]}
21. Ne3 {[%clk 0:01:24.2]} 21... Nd4 {[%clk 0:01:00.3]} 22. Qc4 {[%clk
0:01:18.1]} 22... b6 {[%clk 0:00:55.1]} 23. Ra3 {[%clk 0:01:10.3]} 23... Rbd8
{[%clk 0:00:49.8]} 24. Rad3 {[%clk 0:01:04.4]} 24... Kh8 {[%clk 0:00:45.5]} 25.
R3d2 {[%clk 0:01:02.5]} 25... Qg5 {[%clk 0:00:38.8]} 26. Kh1 {[%clk 0:00:54.8]}
26... Bxd5 {[%clk 0:00:36.8]} 27. Nxd5 {[%clk 0:00:51.3]} 27... f5 {[%clk
0:00:37]} 28. f4 {[%clk 0:00:42.6]} 28... Qg3 {[%clk 0:00:28.7]} 29. e5 {[%clk
0:00:38.8]} 29... Ne6 {[%clk 0:00:12]} 30. Rd3 {[%clk 0:00:32.2]} 30... Qh4
{[%clk 0:00:12.1]} 31. Rf3 {[%clk 0:00:26.9]} 31... Nd4 {[%clk 0:00:11.6]} 32.
Rff1 {[%clk 0:00:23.2]} 32... Qh5 {[%clk 0:00:06.8]} 33. Nxb6 {[%clk 0:00:20.1]}
33... Qg6 {[%clk 0:00:05]} 34. Qxc5 {[%clk 0:00:18.3]} 34... Ne6 {[%clk
0:00:05.1]} 35. Qf2 {[%clk 0:00:17.2]} 35... Rxd1 {[%clk 0:00:05]} 36. Rxd1
{[%clk 0:00:17.3]} 36... Rb8 {[%clk 0:00:05.2]} 37. Nd5 {[%clk 0:00:15.1]} 37...
Rd8 {[%clk 0:00:05.3]} 38. Nc3 {[%clk 0:00:13.2]} 38... Qe8 {[%clk 0:00:05]} 39.
Rxd8 {[%clk 0:00:12.6]} 39... Qxd8 {[%clk 0:00:05.9]} 40. Kh2 {[%clk 0:00:13.2]}
40... Qd3 {[%clk 0:00:05.6]} 41. Qf3 {[%clk 0:00:11.4]} 41... Qd4 {[%clk
0:00:05]} 42. b3 {[%clk 0:00:09.4]} 42... Nxf4 {[%clk 0:00:03.7]} 43. Nb5 {[%clk
0:00:08.7]} 43... Qxe5 {[%clk 0:00:03.4]} 44. Qg3 {[%clk 0:00:06.3]} 44... g5
{[%clk 0:00:03.2]} 45. Nc3 {[%clk 0:00:04.3]} 45... Qd4 {[%clk 0:00:02.9]} 46.
Nb5 {[%clk 0:00:03.5]} 46... Qb4 {[%clk 0:00:02.9]} 47. Qe3 {[%clk 0:00:02.7]}
47... Qf8 {[%clk 0:00:02.4]} 48. Qe5+ {[%clk 0:00:02.8]} 48... Qg7 {[%clk
0:00:02.5]} 49. Qxf5 {[%clk 0:00:02.9]} 49... Qe7 {[%clk 0:00:02.4]} 50. Qc8+
{[%clk 0:00:02]} 50... Kg7 {[%clk 0:00:01.8]} 51. Qc3+ {[%clk 0:00:02.4]} 51...
Kf7 {[%clk 0:00:02.7]} 52. Qxa5 {[%clk 0:00:02.6]} 52... Qe2 {[%clk 0:00:02.6]}
53. Qc7+ {[%clk 0:00:03]} 53... Kg6 {[%clk 0:00:03.1]} 54. Qd6+ {[%clk
0:00:02.8]} 54... Kh5 {[%clk 0:00:03.7]} 55. Qc6 {[%clk 0:00:02.1]} 55... Qf2
{[%clk 0:00:03.5]} 56. Qf3+ {[%clk 0:00:02.5]} 56... Qxf3 {[%clk 0:00:03.1]} 57.
gxf3 {[%clk 0:00:03.4]} 57... Kh4 {[%clk 0:00:03.4]} 58. a5 {[%clk 0:00:04.3]}
58... Nxh3 {[%clk 0:00:03.8]} 59. a6 {[%clk 0:00:05.1]} 59... g4 {[%clk
0:00:02.4]} 60. a7 {[%clk 0:00:06]} 60... Nf2 {[%clk 0:00:02.8]} 61. a8=Q {[%clk
0:00:06.9]} 61... g3+ {[%clk 0:00:02.9]} 62. Kg2 {[%clk 0:00:07.2]} 1-0

[Event "Early-Titled-Tuesday-Blitz-July-09-2024"]
[Site "Chess.com"]
[Date "2024.07.09"]
[Round "1"]
[White "chesslh93"]
[Black "KubaGepard"]
[Result "0-1"]
[WhiteElo "2329"]
[BlackElo "2646"]
[TimeControl "180+1"]
[EndTime "8:08:23 PDT"]
[Termination "KubaGepard won by resignation"]

1. e4 {[%clk 0:03:00.9]} 1... e5 {[%clk 0:02:59.2]} 2. Nf3 {[%clk 0:03:00.4]}
2... Nc6 {[%clk 0:02:54.5]} 3. Bb5 {[%clk 0:02:59.8]} 3... a6 {[%clk 0:02:54.3]}
4. Ba4 {[%clk 0:02:59.2]} 4... Nf6 {[%clk 0:02:53]} 5. O-O {[%clk 0:02:59.1]}
5... Be7 {[%clk 0:02:53.6]} 6. Re1 {[%clk 0:02:59]} 6... b5 {[%clk 0:02:53.6]}
7. Bb3 {[%clk 0:02:59.3]} 7... d6 {[%clk 0:02:52.3]} 8. c3 {[%clk 0:02:59.3]}
8... O-O {[%clk 0:02:50.4]} 9. h3 {[%clk 0:02:59.5]} 9... Na5 {[%clk 0:02:49.1]}
10. Bc2 {[%clk 0:02:59.2]} 10... c5 {[%clk 0:02:49.4]} 11. d4 {[%clk 0:03:00.1]}
11... Qc7 {[%clk 0:02:48.8]} 12. Nbd2 {[%clk 0:02:59.7]} 12... cxd4 {[%clk
0:02:46.1]} 13. cxd4 {[%clk 0:03:00.6]} 13... Rd8 {[%clk 0:02:46.5]} 14. d5
{[%clk 0:02:49.7]} 14... Bd7 {[%clk 0:02:45.1]} 15. Nf1 {[%clk 0:02:48.5]} 15...
Rdc8 {[%clk 0:02:39.1]} 16. Bd3 {[%clk 0:02:47.6]} 16... Nb7 {[%clk 0:02:38.9]}
17. Bg5 {[%clk 0:02:23.8]} 17... Nc5 {[%clk 0:02:31.5]} 18. Rc1 {[%clk
0:02:14.1]} 18... h6 {[%clk 0:02:20]} 19. Bxf6 {[%clk 0:01:52.4]} 19... Bxf6
{[%clk 0:02:19.5]} 20. b4 {[%clk 0:01:52.5]} 20... Qb6 {[%clk 0:02:19.4]} 21.
bxc5 {[%clk 0:01:52.3]} 21... dxc5 {[%clk 0:02:20]} 22. Bb1 {[%clk 0:01:43.1]}
22... c4 {[%clk 0:02:18.8]} 23. Ne3 {[%clk 0:01:40.2]} 23... Qd6 {[%clk
0:02:16.9]} 24. Nh2 {[%clk 0:01:18.8]} 24... Bg5 {[%clk 0:02:14.4]} 25. Nf3
{[%clk 0:01:14.1]} 25... Bxe3 {[%clk 0:02:11.7]} 26. Rxe3 {[%clk 0:01:14.1]}
26... b4 {[%clk 0:02:11.9]} 27. Nh4 {[%clk 0:01:08.2]} 27... c3 {[%clk
0:02:07.1]} 28. Nf5 {[%clk 0:01:05]} 28... Bxf5 {[%clk 0:02:04.7]} 29. exf5
{[%clk 0:01:05.9]} 29... Rc5 {[%clk 0:02:04.9]} 30. Be4 {[%clk 0:01:02.5]} 30...
Rac8 {[%clk 0:02:02.9]} 31. f6 {[%clk 0:00:49.1]} 31... g6 {[%clk 0:02:00.1]}
32. Qg4 {[%clk 0:00:42.7]} 32... Qxf6 {[%clk 0:01:58.3]} 33. Rf3 {[%clk
0:00:39.7]} 33... Qg5 {[%clk 0:01:55.8]} 34. Qxg5 {[%clk 0:00:20]} 34... hxg5
{[%clk 0:01:55.2]} 35. Rf6 {[%clk 0:00:20.5]} 35... a5 {[%clk 0:01:54.3]} 36.
Rc6 {[%clk 0:00:17.7]} 36... R8xc6 {[%clk 0:01:52.1]} 37. dxc6 {[%clk
0:00:18.6]} 37... f5 {[%clk 0:01:52.6]} 38. Bf3 {[%clk 0:00:12.7]} 38... e4
{[%clk 0:01:51.9]} 39. Bd1 {[%clk 0:00:12.3]} 39... Rxc6 {[%clk 0:01:51.4]} 40.
Bb3+ {[%clk 0:00:12.5]} 40... Kf8 {[%clk 0:01:51.2]} 41. Kf1 {[%clk 0:00:12.9]}
41... Ke7 {[%clk 0:01:46.9]} 42. Ke2 {[%clk 0:00:13.1]} 42... Ra6 {[%clk
0:01:42.2]} 43. Rd1 {[%clk 0:00:10.4]} 43... a4 {[%clk 0:01:41.7]} 44. Bc2
{[%clk 0:00:10.6]} 44... Ke6 {[%clk 0:01:32]} 45. f3 {[%clk 0:00:07.5]} 45...
Ke5 {[%clk 0:01:31]} 46. fxe4 {[%clk 0:00:06.7]} 46... fxe4 {[%clk 0:01:30.9]}
47. Ke3 {[%clk 0:00:06.3]} 47... Ra7 {[%clk 0:01:25.4]} 48. Rd8 {[%clk
0:00:04.6]} 48... b3 {[%clk 0:01:24.9]} 49. axb3 {[%clk 0:00:04.8]} 49... a3
{[%clk 0:01:25.1]} 50. Re8+ {[%clk 0:00:03]} 50... Kd6 {[%clk 0:01:24.4]} 51.
Bb1 {[%clk 0:00:02.8]} 51... c2 {[%clk 0:01:21.8]} 52. Bxc2 {[%clk 0:00:03.1]}
52... a2 {[%clk 0:01:21.9]} 53. Rd8+ {[%clk 0:00:02.7]} 53... Kc5 {[%clk
0:01:20.1]} 54. Rd1 {[%clk 0:00:02.8]} 54... a1=Q {[%clk 0:01:19.7]} 55. Rxa1
{[%clk 0:00:03.3]} 55... Rxa1 {[%clk 0:01:20.6]} 56. Bxe4 {[%clk 0:00:04.1]}
56... Re1+ {[%clk 0:01:20.4]} 57. Kf3 {[%clk 0:00:03.9]} 57... Kd4 {[%clk
0:01:20.4]} 58. Bxg6 {[%clk 0:00:03]} 58... Ke5 {[%clk 0:01:21]} 59. Kg3 {[%clk
0:00:02.7]} 59... Re3+ {[%clk 0:01:19.7]} 60. Kh2 {[%clk 0:00:03]} 60... Rxb3
{[%clk 0:01:18.9]} 61. Bh5 {[%clk 0:00:03.3]} 61... Kf4 {[%clk 0:01:18.7]} 62.
Bf3 {[%clk 0:00:03.6]} 62... Ke3 {[%clk 0:01:15.1]} 63. Kg3 {[%clk 0:00:03.4]}
63... Rb4 {[%clk 0:01:09.4]} 64. Bg4 {[%clk 0:00:02.2]} 64... Rb8 {[%clk
0:01:05.3]} 65. Bf3 {[%clk 0:00:01.5]} 65... Rb4 {[%clk 0:01:03.9]} 66. Bg4
{[%clk 0:00:01.8]} 66... Ke4 {[%clk 0:01:00.6]} 67. Bf3+ {[%clk 0:00:01.7]}
67... Kf5 {[%clk 0:01:00.1]} 68. Bg4+ {[%clk 0:00:02]} 68... Ke5 {[%clk
0:01:00.8]} 69. Bf3 {[%clk 0:00:02.9]} 69... Kf6 {[%clk 0:00:59.2]} 70. Bg4
{[%clk 0:00:03.2]} 70... Rb3+ {[%clk 0:00:58.7]} 71. Bf3 {[%clk 0:00:03.7]}
71... Kf5 {[%clk 0:00:59.2]} 72. Kf2 {[%clk 0:00:03]} 72... Kf4 {[%clk
0:00:58.9]} 73. Ke2 {[%clk 0:00:02.5]} 73... Kg3 {[%clk 0:00:57.8]} 74. Kf1
{[%clk 0:00:01.4]} 74... Rb2 {[%clk 0:00:57.2]} 75. Kg1 {[%clk 0:00:01.4]} 75...
Rb1+ {[%clk 0:00:57.1]} 0-1